[Event "*** MasterClass Titled Tuesday Blitz"]
[Site "Chess.com"]
[Date "2017.11.07"]
[Round "8"]
[White "pastouche06"]
[Black "Angry_Serb"]
[Result "1-0"]
[WhiteElo "2362"]
[BlackElo "2421"]
[TimeControl "180+2"]
[EndTime "15:55:09 PST"]
[Termination "pastouche06 won by checkmate"]

1. e4 {[%clk 0:03:01.9]} 1... e5 {[%clk 0:03:00]} 2. f4 {[%clk 0:03:02.6]} 2...
c6 {[%clk 0:02:57.4]} 3. Nc3 {[%clk 0:02:54.2]} 3... d5 {[%clk 0:02:56]} 4. exd5
{[%clk 0:02:51.3]} 4... exf4 {[%clk 0:02:55.9]} 5. Nf3 {[%clk 0:02:46.9]} 5...
cxd5 {[%clk 0:02:56.4]} 6. d4 {[%clk 0:02:34]} 6... Nc6 {[%clk 0:02:25.7]} 7.
Bxf4 {[%clk 0:02:29.2]} 7... Nf6 {[%clk 0:02:27.6]} 8. Ne5 {[%clk 0:01:44.5]}
8... Bb4 {[%clk 0:02:23.8]} 9. Bb5 {[%clk 0:01:41]} 9... O-O {[%clk 0:02:22.1]}
10. O-O {[%clk 0:01:38.2]} 10... Qb6 {[%clk 0:02:04.7]} 11. Nxc6 {[%clk
0:01:30.4]} 11... bxc6 {[%clk 0:02:03.4]} 12. Be2 {[%clk 0:01:13.7]} 12... Ba6
{[%clk 0:01:53.2]} 13. Kh1 {[%clk 0:01:02.9]} 13... Bxc3 {[%clk 0:01:46.9]} 14.
bxc3 {[%clk 0:01:00.9]} 14... Bxe2 {[%clk 0:01:48.5]} 15. Qxe2 {[%clk
0:01:01.8]} 15... Ne4 {[%clk 0:01:50.4]} 16. Rf3 {[%clk 0:00:55.7]} 16... Rae8
{[%clk 0:01:46]} 17. Qd3 {[%clk 0:00:48.5]} 17... Re6 {[%clk 0:01:37.6]} 18.
Raf1 {[%clk 0:00:46.2]} 18... Qa5 {[%clk 0:01:26.9]} 19. c4 {[%clk 0:00:25.5]}
19... Qxa2 {[%clk 0:01:20.5]} 20. cxd5 {[%clk 0:00:24.4]} 20... cxd5 {[%clk
0:01:21.2]} 21. Qa3 {[%clk 0:00:17.5]} 21... Qxc2 {[%clk 0:01:01.1]} 22. Qxa7
{[%clk 0:00:17.4]} 22... Nf2+ {[%clk 0:00:59.9]} 23. Kg1 {[%clk 0:00:11.4]}
23... Nd3 {[%clk 0:00:59.3]} 24. Bd6 {[%clk 0:00:02.3]} 24... Re2 {[%clk
0:00:18.6]} 25. Rxf7 {[%clk 0:00:02.2]} 25... Rxg2+ {[%clk 0:00:19.1]} 26. Kh1
{[%clk 0:00:03.7]} 26... Nf2+ {[%clk 0:00:18.9]} 27. Kxg2 {[%clk 0:00:03.8]}
27... Ng4+ {[%clk 0:00:17.3]} 28. Kg1 {[%clk 0:00:03.8]} 28... Nf6 {[%clk
0:00:14.4]} 29. Rxg7+ {[%clk 0:00:04.4]} 29... Kh8 {[%clk 0:00:15.5]} 30. Rxh7+
{[%clk 0:00:05.6]} 30... Nxh7 {[%clk 0:00:14.9]} 31. Rxf8+ {[%clk 0:00:06.5]}
31... Nxf8 {[%clk 0:00:14.1]} 32. Be5+ {[%clk 0:00:07.9]} 32... Kg8 {[%clk
0:00:14.3]} 33. Qg7# {[%clk 0:00:09.5]} 1-0

[Event "*** MasterClass Titled Tuesday Blitz"]
[Site "Chess.com"]
[Date "2017.11.07"]
[Round "8"]
[White "Ar4uha"]
[Black "Giorno"]
[Result "1/2-1/2"]
[WhiteElo "2424"]
[BlackElo "2342"]
[TimeControl "180+2"]
[EndTime "15:55:20 PST"]
[Termination "Game drawn by repetition"]

1. e4 {[%clk 0:03:01.9]} 1... c5 {[%clk 0:02:59.7]} 2. Nf3 {[%clk 0:03:03.1]}
2... d6 {[%clk 0:03:00.9]} 3. Bb5+ {[%clk 0:03:04.2]} 3... Bd7 {[%clk
0:02:59.2]} 4. Bxd7+ {[%clk 0:03:05.3]} 4... Qxd7 {[%clk 0:02:58.9]} 5. O-O
{[%clk 0:03:07.2]} 5... Nf6 {[%clk 0:02:59.7]} 6. e5 {[%clk 0:03:08.7]} 6...
dxe5 {[%clk 0:03:00.9]} 7. Nxe5 {[%clk 0:03:10.6]} 7... Qc8 {[%clk 0:03:02.5]}
8. Qf3 {[%clk 0:03:10]} 8... e6 {[%clk 0:03:03.6]} 9. Nc3 {[%clk 0:03:10.3]}
9... Be7 {[%clk 0:03:04]} 10. d3 {[%clk 0:03:11.2]} 10... O-O {[%clk 0:03:04.9]}
11. Bg5 {[%clk 0:03:12.7]} 11... Nbd7 {[%clk 0:02:47.6]} 12. Nc4 {[%clk
0:03:12.2]} 12... h6 {[%clk 0:02:33.1]} 13. Bf4 {[%clk 0:03:11.3]} 13... Nb6
{[%clk 0:02:27.7]} 14. Nd6 {[%clk 0:03:04.4]} 14... Bxd6 {[%clk 0:02:13.3]} 15.
Bxd6 {[%clk 0:03:06.3]} 15... Re8 {[%clk 0:02:10.5]} 16. Ne4 {[%clk 0:03:04.5]}
16... Nxe4 {[%clk 0:02:07.3]} 17. dxe4 {[%clk 0:03:06.4]} 17... e5 {[%clk
0:02:00.5]} 18. Rfd1 {[%clk 0:03:05.2]} 18... Re6 {[%clk 0:01:58]} 19. Qc3
{[%clk 0:02:59.2]} 19... Nd7 {[%clk 0:01:52.1]} 20. Rd5 {[%clk 0:03:00.2]} 20...
b6 {[%clk 0:01:44.6]} 21. Bxe5 {[%clk 0:03:01]} 21... f6 {[%clk 0:01:37]} 22.
Bg3 {[%clk 0:02:59.5]} 22... Rxe4 {[%clk 0:01:37.7]} 23. Rad1 {[%clk 0:03:00.5]}
23... Nf8 {[%clk 0:01:35.8]} 24. Qf3 {[%clk 0:02:57.5]} 24... Qe6 {[%clk
0:01:35.4]} 25. h3 {[%clk 0:02:58.6]} 25... Re8 {[%clk 0:01:33.2]} 26. Rd6
{[%clk 0:02:57.7]} 26... Qxa2 {[%clk 0:01:27.3]} 27. Qc3 {[%clk 0:02:50.6]}
27... Qf7 {[%clk 0:01:24.2]} 28. b3 {[%clk 0:02:50.4]} 28... h5 {[%clk
0:01:24.6]} 29. h4 {[%clk 0:02:50.8]} 29... R4e6 {[%clk 0:01:19.6]} 30. Rd8
{[%clk 0:02:51.6]} 30... Rxd8 {[%clk 0:01:19.4]} 31. Rxd8 {[%clk 0:02:53.5]}
31... Re8 {[%clk 0:01:20.9]} 32. Qd3 {[%clk 0:02:54.2]} 32... Rxd8 {[%clk
0:01:17.8]} 33. Qxd8 {[%clk 0:02:56.1]} 33... Qd7 {[%clk 0:01:17.7]} 34. Qb8
{[%clk 0:02:52]} 34... Kf7 {[%clk 0:01:11]} 35. Qa8 {[%clk 0:02:47.1]} 35... Ne6
{[%clk 0:01:10.7]} 36. Qf3 {[%clk 0:02:46.2]} 36... g6 {[%clk 0:01:08.4]} 37.
Be5 {[%clk 0:02:47.1]} 37... Qe7 {[%clk 0:01:01.5]} 38. g3 {[%clk 0:02:46.8]}
38... Kg7 {[%clk 0:01:01.7]} 39. Bc3 {[%clk 0:02:47.6]} 39... Nd4 {[%clk
0:01:02.9]} 40. Bxd4 {[%clk 0:02:48.5]} 40... cxd4 {[%clk 0:01:04.8]} 41. Qd5
{[%clk 0:02:49]} 41... Qe5 {[%clk 0:00:57.3]} 42. Qb7+ {[%clk 0:02:49.6]} 42...
Kh6 {[%clk 0:00:55.9]} 43. Qxa7 {[%clk 0:02:50.9]} 43... Qe1+ {[%clk 0:00:54.2]}
44. Kg2 {[%clk 0:02:52.2]} 44... Qe4+ {[%clk 0:00:55.2]} 45. Kg1 {[%clk
0:02:52.8]} 45... Qe1+ {[%clk 0:00:56.1]} 46. Kg2 {[%clk 0:02:54.3]} 46... Qe4+
{[%clk 0:00:53.6]} 47. Kh2 {[%clk 0:02:55.5]} 47... Qxc2 {[%clk 0:00:52]} 48.
Qxb6 {[%clk 0:02:51.1]} 48... Qxf2+ {[%clk 0:00:52.1]} 49. Kh3 {[%clk 0:02:53]}
49... Qf1+ {[%clk 0:00:48.4]} 50. Kh2 {[%clk 0:02:54.5]} 50... Qe2+ {[%clk
0:00:43.7]} 51. Kh3 {[%clk 0:02:54.1]} 51... Qg4+ {[%clk 0:00:40.5]} 52. Kh2
{[%clk 0:02:54.9]} 52... Qe2+ {[%clk 0:00:29.8]} 53. Kh3 {[%clk 0:02:56.3]}
53... Qf1+ {[%clk 0:00:29.1]} 54. Kh2 {[%clk 0:02:57.4]} 54... d3 {[%clk
0:00:26.4]} 55. Qd8 {[%clk 0:02:57.8]} 55... Qf2+ {[%clk 0:00:24.1]} 56. Kh3
{[%clk 0:02:59.3]} 56... Qf5+ {[%clk 0:00:23.5]} 57. Kh2 {[%clk 0:03:00.3]}
57... Kg7 {[%clk 0:00:15.6]} 58. Qe7+ {[%clk 0:02:57.4]} 58... Kg8 {[%clk
0:00:15.7]} 59. Qe8+ {[%clk 0:02:56]} 59... Kg7 {[%clk 0:00:16.5]} 60. Qe7+
{[%clk 0:02:57.5]} 60... Kg8 {[%clk 0:00:17.7]} 61. Qe8+ {[%clk 0:02:59]} 61...
Kg7 {[%clk 0:00:19.1]} 62. Qe7+ {[%clk 0:03:00.1]} 62... Kg8 {[%clk 0:00:20.5]}
63. b4 {[%clk 0:02:59.7]} 63... Qf2+ {[%clk 0:00:18.8]} 64. Kh3 {[%clk
0:03:01.3]} 64... Qf5+ {[%clk 0:00:19.7]} 65. Kg2 {[%clk 0:03:02]} 65... Qd5+
{[%clk 0:00:19.8]} 66. Kf2 {[%clk 0:03:03.3]} 66... d2 {[%clk 0:00:21.3]} 67.
Qe8+ {[%clk 0:03:03.1]} 67... Kg7 {[%clk 0:00:22.7]} 68. Qe7+ {[%clk 0:03:04.5]}
68... Kg8 {[%clk 0:00:20.9]} 69. Qe8+ {[%clk 0:03:05.7]} 69... Kg7 {[%clk
0:00:22.4]} 70. Qe7+ {[%clk 0:03:06.9]} 70... Kg8 {[%clk 0:00:14.8]} 71. Qe8+
{[%clk 0:03:08.2]} 71... Kg7 {[%clk 0:00:16.1]} 72. Qe7+ {[%clk 0:03:09.7]}
72... Kg8 {[%clk 0:00:17.4]} 73. Qe8+ {[%clk 0:03:10.9]} 73... Kg7 {[%clk
0:00:18.7]} 74. Qe7+ {[%clk 0:03:12.4]} 74... Kg8 {[%clk 0:00:20.1]} 1/2-1/2

[Event "*** MasterClass Titled Tuesday Blitz"]
[Site "Chess.com"]
[Date "2017.11.07"]
[Round "8"]
[White "thegreendog"]
[Black "northridgehawk"]
[Result "1-0"]
[WhiteElo "2341"]
[BlackElo "1942"]
[TimeControl "180+2"]
[EndTime "15:55:24 PST"]
[Termination "thegreendog won by resignation"]

1. d4 {[%clk 0:03:01.9]} 1... f5 {[%clk 0:02:59.9]} 2. Nc3 {[%clk 0:03:01.6]}
2... Nf6 {[%clk 0:02:57.4]} 3. Bg5 {[%clk 0:03:01]} 3... d5 {[%clk 0:02:55.7]}
4. Nf3 {[%clk 0:02:45.5]} 4... e6 {[%clk 0:02:49.6]} 5. Ne5 {[%clk 0:02:46.2]}
5... Nbd7 {[%clk 0:02:47.6]} 6. g3 {[%clk 0:02:44.1]} 6... Bd6 {[%clk
0:02:20.6]} 7. Nd3 {[%clk 0:02:42.2]} 7... c5 {[%clk 0:02:04]} 8. Nb5 {[%clk
0:02:40.1]} 8... Qa5+ {[%clk 0:01:58.7]} 9. Nc3 {[%clk 0:02:38.6]} 9... cxd4
{[%clk 0:01:56.4]} 10. a3 {[%clk 0:02:06.2]} 10... dxc3 {[%clk 0:01:41.3]} 11.
b4 {[%clk 0:02:07.3]} 11... Qc7 {[%clk 0:01:41.3]} 12. Bg2 {[%clk 0:02:08.5]}
12... O-O {[%clk 0:01:41.7]} 13. O-O {[%clk 0:02:09.2]} 13... b5 {[%clk
0:01:39.4]} 14. Nc1 {[%clk 0:02:02.9]} 14... Bb7 {[%clk 0:01:39.6]} 15. Nb3
{[%clk 0:02:04]} 15... a6 {[%clk 0:01:04.9]} 16. Qd3 {[%clk 0:01:43.3]} 16...
Ne5 {[%clk 0:00:55.6]} 17. Qe3 {[%clk 0:01:40.5]} 17... Rae8 {[%clk 0:00:46.1]}
18. h3 {[%clk 0:01:41.5]} 18... Nc4 {[%clk 0:00:28.3]} 19. Qc1 {[%clk
0:01:42.2]} 19... e5 {[%clk 0:00:29.5]} 20. Rd1 {[%clk 0:01:42.1]} 20... Ne4
{[%clk 0:00:23.5]} 21. Be3 {[%clk 0:01:24.3]} 21... f4 {[%clk 0:00:12.3]} 22.
gxf4 {[%clk 0:01:22.5]} 22... exf4 {[%clk 0:00:14.2]} 23. Bd4 {[%clk 0:01:21.5]}
23... Ng5 {[%clk 0:00:14]} 24. Bxc3 {[%clk 0:01:18.4]} 24... f3 {[%clk
0:00:12.6]} 25. Qxg5 {[%clk 0:01:10.4]} 25... fxg2 {[%clk 0:00:13.8]} 26. Nd4
{[%clk 0:00:59.3]} 26... Re4 {[%clk 0:00:12.7]} 27. Nf5 {[%clk 0:00:57]} 27...
Bh2+ {[%clk 0:00:12.2]} 28. Kxg2 {[%clk 0:00:55.6]} 28... d4 {[%clk 0:00:13.6]}
29. f3 {[%clk 0:00:28.3]} 29... Rxe2+ {[%clk 0:00:13.8]} 30. Kf1 {[%clk
0:00:29.6]} 30... Rxf5 {[%clk 0:00:09.2]} 31. Qxf5 {[%clk 0:00:26.7]} 31... Qe7
{[%clk 0:00:09.8]} 32. Bxd4 {[%clk 0:00:24.2]} 32... Ne3+ {[%clk 0:00:10]} 33.
Bxe3 {[%clk 0:00:24.7]} 33... Rxe3 {[%clk 0:00:09.8]} 34. Rd3 {[%clk 0:00:23.2]}
34... Rxd3 {[%clk 0:00:10.5]} 35. cxd3 {[%clk 0:00:23.9]} 35... Qd6 {[%clk
0:00:10.7]} 36. Re1 {[%clk 0:00:23.8]} 36... h6 {[%clk 0:00:11.3]} 37. Re8+
{[%clk 0:00:24.4]} 1-0

[Event "*** MasterClass Titled Tuesday Blitz"]
[Site "Chess.com"]
[Date "2017.11.07"]
[Round "8"]
[White "Shivagami"]
[Black "Rodalquilar"]
[Result "0-1"]
[WhiteElo "2063"]
[BlackElo "2496"]
[TimeControl "180+2"]
[EndTime "15:55:26 PST"]
[Termination "Rodalquilar won by resignation"]

1. d4 {[%clk 0:03:01.9]} 1... Nf6 {[%clk 0:03:00.7]} 2. Bf4 {[%clk 0:03:01.5]}
2... d5 {[%clk 0:02:58.8]} 3. e3 {[%clk 0:03:01.2]} 3... e6 {[%clk 0:03:00.1]}
4. Nd2 {[%clk 0:03:01]} 4... c5 {[%clk 0:03:01.2]} 5. c3 {[%clk 0:03:00.7]} 5...
Nc6 {[%clk 0:03:02.6]} 6. Ngf3 {[%clk 0:03:00.9]} 6... cxd4 {[%clk 0:03:04]} 7.
exd4 {[%clk 0:03:00.8]} 7... Nh5 {[%clk 0:03:05.3]} 8. Bg5 {[%clk 0:03:00.8]}
8... f6 {[%clk 0:03:05.7]} 9. Ne5 {[%clk 0:02:36.1]} 9... g6 {[%clk 0:03:06.5]}
10. Nxc6 {[%clk 0:02:35.8]} 10... bxc6 {[%clk 0:03:08.4]} 11. Bh4 {[%clk
0:02:32.3]} 11... Be7 {[%clk 0:03:01.5]} 12. Be2 {[%clk 0:02:24]} 12... Ng7
{[%clk 0:03:02.2]} 13. Nb3 {[%clk 0:02:24.4]} 13... Nf5 {[%clk 0:02:59.6]} 14.
Bg3 {[%clk 0:02:24.5]} 14... h5 {[%clk 0:03:00.8]} 15. Bf4 {[%clk 0:02:21.9]}
15... a5 {[%clk 0:02:56.6]} 16. Bd3 {[%clk 0:02:19.8]} 16... Ba6 {[%clk
0:02:20]} 17. Bxa6 {[%clk 0:02:14.1]} 17... Rxa6 {[%clk 0:02:21.9]} 18. Qe2
{[%clk 0:02:15.5]} 18... Qc8 {[%clk 0:02:23]} 19. O-O-O {[%clk 0:02:12.4]} 19...
a4 {[%clk 0:02:23.7]} 20. Nc5 {[%clk 0:02:12.1]} 20... Bxc5 {[%clk 0:02:24.8]}
21. dxc5 {[%clk 0:02:14]} 21... e5 {[%clk 0:02:22.8]} 22. Rhe1 {[%clk
0:02:02.7]} 22... Kf7 {[%clk 0:02:23.8]} 23. Bd2 {[%clk 0:01:57.6]} 23... Ra5
{[%clk 0:02:20.3]} 24. f4 {[%clk 0:01:46.2]} 24... e4 {[%clk 0:02:17.8]} 25. Be3
{[%clk 0:01:46.5]} 25... Qa6 {[%clk 0:02:10.5]} 26. Bd4 {[%clk 0:01:43.3]} 26...
Qxe2 {[%clk 0:02:08.4]} 27. Rxe2 {[%clk 0:01:43.5]} 27... Rb8 {[%clk 0:02:07.8]}
28. h3 {[%clk 0:01:37.7]} 28... h4 {[%clk 0:02:08.4]} 29. Kc2 {[%clk 0:01:22.9]}
29... Rab5 {[%clk 0:02:07]} 30. Kc1 {[%clk 0:01:18.1]} 30... Ke6 {[%clk
0:01:58.2]} 31. Rde1 {[%clk 0:01:10]} 31... Ng3 {[%clk 0:01:46.6]} 32. Re3
{[%clk 0:01:10.1]} 32... Kf5 {[%clk 0:01:46.5]} 33. c4 {[%clk 0:00:50.6]} 33...
Rb4 {[%clk 0:01:39.8]} 34. Rc3 {[%clk 0:00:38.1]} 34... Rxb2 {[%clk 0:01:39.2]}
35. Rxg3 {[%clk 0:00:22.2]} 35... Rb1+ {[%clk 0:01:39.7]} 36. Kd2 {[%clk
0:00:20.8]} 36... hxg3 {[%clk 0:01:36.8]} 37. Re3 {[%clk 0:00:19]} 37... a3
{[%clk 0:01:27.2]} 38. Rxa3 {[%clk 0:00:15.3]} 38... Kxf4 {[%clk 0:01:24.6]} 39.
Bxf6 {[%clk 0:00:15.4]} 39... Rg1 {[%clk 0:01:14.1]} 40. Bd4 {[%clk 0:00:14.4]}
40... Rxg2+ {[%clk 0:01:15.3]} 41. Kc3 {[%clk 0:00:14.4]} 41... Rf2 {[%clk
0:01:12.2]} 42. Rb3 {[%clk 0:00:10.3]} 42... Rf3+ {[%clk 0:01:10.9]} 43. Kc2
{[%clk 0:00:11.2]} 43... Rbxb3 {[%clk 0:01:10.7]} 44. axb3 {[%clk 0:00:13.1]}
44... dxc4 {[%clk 0:01:10.4]} 45. bxc4 {[%clk 0:00:12.9]} 45... e3 {[%clk
0:01:09.6]} 46. Kd3 {[%clk 0:00:13.4]} 46... g2 {[%clk 0:01:10.8]} 0-1

[Event "*** MasterClass Titled Tuesday Blitz"]
[Site "Chess.com"]
[Date "2017.11.07"]
[Round "8"]
[White "twitchTriniCupid"]
[Black "PrinceMurad09"]
[Result "0-1"]
[WhiteElo "2078"]
[BlackElo "2243"]
[TimeControl "180+2"]
[EndTime "15:55:52 PST"]
[Termination "PrinceMurad09 won by resignation"]

1. d4 {[%clk 0:03:01.9]} 1... Nf6 {[%clk 0:02:58.8]} 2. c4 {[%clk 0:03:02.6]}
2... c5 {[%clk 0:02:57.7]} 3. d5 {[%clk 0:03:03.6]} 3... b5 {[%clk 0:02:59]} 4.
Nd2 {[%clk 0:03:03.9]} 4... a6 {[%clk 0:03:00.9]} 5. e4 {[%clk 0:03:03.8]} 5...
d6 {[%clk 0:03:02.2]} 6. cxb5 {[%clk 0:03:02.8]} 6... Nbd7 {[%clk 0:03:02.9]} 7.
Ngf3 {[%clk 0:03:00.3]} 7... g6 {[%clk 0:03:00.4]} 8. Bd3 {[%clk 0:02:57.1]}
8... Bg7 {[%clk 0:02:57.3]} 9. O-O {[%clk 0:02:57.1]} 9... O-O {[%clk 0:02:58]}
10. a4 {[%clk 0:02:54.5]} 10... axb5 {[%clk 0:02:55.6]} 11. Bxb5 {[%clk
0:02:54.6]} 11... Ba6 {[%clk 0:02:56.6]} 12. Bxa6 {[%clk 0:02:27.3]} 12... Rxa6
{[%clk 0:02:58.5]} 13. Qe2 {[%clk 0:02:22]} 13... Qa8 {[%clk 0:02:56.4]} 14. Nc4
{[%clk 0:01:53.4]} 14... Rxa4 {[%clk 0:02:53.8]} 15. Rxa4 {[%clk 0:01:52.9]}
15... Qxa4 {[%clk 0:02:55.7]} 16. Rd1 {[%clk 0:01:40.8]} 16... Qb5 {[%clk
0:02:55.2]} 17. Qc2 {[%clk 0:01:36.9]} 17... Rb8 {[%clk 0:02:52.5]} 18. e5
{[%clk 0:01:29.7]} 18... Ne8 {[%clk 0:02:49.8]} 19. exd6 {[%clk 0:01:29.7]}
19... exd6 {[%clk 0:02:48.9]} 20. Bf4 {[%clk 0:01:28.4]} 20... Nb6 {[%clk
0:02:30.4]} 21. Nxd6 {[%clk 0:01:25.3]} 21... Nxd6 {[%clk 0:02:30.8]} 22. Bxd6
{[%clk 0:01:27.2]} 22... Rc8 {[%clk 0:02:30.2]} 23. Be7 {[%clk 0:01:25.5]} 23...
Qxb2 {[%clk 0:02:26.8]} 24. Qxb2 {[%clk 0:01:09.5]} 24... Bxb2 {[%clk
0:02:28.7]} 25. d6 {[%clk 0:01:11.4]} 25... Nd7 {[%clk 0:02:28.1]} 26. Rd2
{[%clk 0:01:06.7]} 26... Bg7 {[%clk 0:02:23]} 27. Kf1 {[%clk 0:00:49.1]} 27...
c4 {[%clk 0:02:21.6]} 28. Ke2 {[%clk 0:00:50.2]} 28... c3 {[%clk 0:02:20.4]} 29.
Rc2 {[%clk 0:00:51.2]} 29... Rc6 {[%clk 0:02:17.3]} 30. Nd2 {[%clk 0:00:41.8]}
30... f5 {[%clk 0:02:13.2]} 31. Nf3 {[%clk 0:00:25.4]} 31... h6 {[%clk
0:02:05.2]} 32. h4 {[%clk 0:00:24.2]} 32... Kf7 {[%clk 0:02:05.1]} 33. Ne1
{[%clk 0:00:25.2]} 33... Nb6 {[%clk 0:01:58.3]} 34. Nd3 {[%clk 0:00:25.2]} 34...
Nd5 {[%clk 0:01:58.9]} 35. f4 {[%clk 0:00:20.2]} 35... Nxe7 {[%clk 0:01:55.2]}
36. dxe7 {[%clk 0:00:20.3]} 36... Kxe7 {[%clk 0:01:57.1]} 37. Ke3 {[%clk
0:00:20.1]} 37... Bf6 {[%clk 0:01:56.8]} 38. g3 {[%clk 0:00:21.1]} 38... Rc4
{[%clk 0:01:57.4]} 39. Nc1 {[%clk 0:00:20.7]} 39... Re4+ {[%clk 0:01:57.7]} 40.
Kd3 {[%clk 0:00:21.8]} 40... Re6 {[%clk 0:01:54]} 41. Ne2 {[%clk 0:00:23.2]}
41... Rd6+ {[%clk 0:01:53.7]} 42. Kc4 {[%clk 0:00:24.6]} 42... Rc6+ {[%clk
0:01:54.5]} 43. Kd5 {[%clk 0:00:25.4]} 43... Kd7 {[%clk 0:01:54.6]} 44. Nc1
{[%clk 0:00:20.8]} 44... Rd6+ {[%clk 0:01:54.9]} 45. Kc4 {[%clk 0:00:21.9]}
45... Rd2 {[%clk 0:01:55.6]} 46. Kb3 {[%clk 0:00:23.2]} 46... Rd1 {[%clk
0:01:49.5]} 47. Na2 {[%clk 0:00:23.5]} 47... Rd3 {[%clk 0:01:50.3]} 48. Nb4
{[%clk 0:00:23.6]} 48... Rxg3 {[%clk 0:01:50.5]} 49. Nd5 {[%clk 0:00:25]} 49...
Ke6 {[%clk 0:01:49.8]} 50. Nxc3 {[%clk 0:00:24.9]} 50... Re3 {[%clk 0:01:20.3]}
51. Kc4 {[%clk 0:00:25.2]} 51... Bxc3 {[%clk 0:01:18.5]} 52. Rxc3 {[%clk
0:00:27.1]} 52... Re4+ {[%clk 0:01:19.4]} 53. Kc5 {[%clk 0:00:28.5]} 53... Rxf4
{[%clk 0:01:20.4]} 54. Rd3 {[%clk 0:00:28.7]} 54... Rxh4 {[%clk 0:01:18.2]} 55.
Rd6+ {[%clk 0:00:29.5]} 55... Ke5 {[%clk 0:01:19.8]} 56. Rxg6 {[%clk 0:00:30]}
56... f4 {[%clk 0:01:21.3]} 57. Rg8 {[%clk 0:00:29.5]} 57... f3 {[%clk
0:01:22.4]} 58. Re8+ {[%clk 0:00:30.2]} 58... Kf5 {[%clk 0:01:22.6]} 59. Rf8+
{[%clk 0:00:30.1]} 59... Ke4 {[%clk 0:01:20.8]} 60. Kc4 {[%clk 0:00:29.5]} 60...
Rf4 {[%clk 0:01:20.1]} 61. Re8+ {[%clk 0:00:29.8]} 61... Kf5+ {[%clk 0:01:20.4]}
62. Kd3 {[%clk 0:00:30.7]} 62... f2 {[%clk 0:01:20.3]} 0-1

[Event "*** MasterClass Titled Tuesday Blitz"]
[Site "Chess.com"]
[Date "2017.11.07"]
[Round "8"]
[White "GeorgMeier"]
[Black "Tarlev_Konstantin"]
[Result "1-0"]
[WhiteElo "2687"]
[BlackElo "2625"]
[TimeControl "180+2"]
[EndTime "15:55:53 PST"]
[Termination "GeorgMeier won by resignation"]

1. d4 {[%clk 0:03:01.9]} 1... Nf6 {[%clk 0:02:59.8]} 2. Nf3 {[%clk 0:03:03.8]}
2... e6 {[%clk 0:03:01]} 3. g3 {[%clk 0:03:05.1]} 3... b5 {[%clk 0:03:00.9]} 4.
Bg2 {[%clk 0:03:07]} 4... Bb7 {[%clk 0:03:01.7]} 5. O-O {[%clk 0:03:08.9]} 5...
Be7 {[%clk 0:03:03]} 6. Qd3 {[%clk 0:03:10.5]} 6... a6 {[%clk 0:03:01.3]} 7. a4
{[%clk 0:02:55.3]} 7... Be4 {[%clk 0:02:52.5]} 8. Qd1 {[%clk 0:02:51.1]} 8...
O-O {[%clk 0:02:48.5]} 9. Nc3 {[%clk 0:02:50.7]} 9... b4 {[%clk 0:02:16.6]} 10.
Nxe4 {[%clk 0:02:45.5]} 10... Nxe4 {[%clk 0:02:18.2]} 11. Nd2 {[%clk 0:02:36.4]}
11... Nxd2 {[%clk 0:02:17.9]} 12. Bxd2 {[%clk 0:02:38.3]} 12... d5 {[%clk
0:02:12.4]} 13. a5 {[%clk 0:02:32.4]} 13... Nd7 {[%clk 0:02:05.9]} 14. c4 {[%clk
0:02:26.1]} 14... bxc3 {[%clk 0:01:58.5]} 15. bxc3 {[%clk 0:02:19.6]} 15... c5
{[%clk 0:01:35.1]} 16. e4 {[%clk 0:01:33.3]} 16... dxe4 {[%clk 0:01:22.2]} 17.
Bxe4 {[%clk 0:01:35.2]} 17... Ra7 {[%clk 0:01:22.9]} 18. Qe2 {[%clk 0:01:35.9]}
18... cxd4 {[%clk 0:01:21]} 19. cxd4 {[%clk 0:01:37]} 19... Nf6 {[%clk
0:01:22.1]} 20. Bd3 {[%clk 0:01:37.7]} 20... Qa8 {[%clk 0:01:08.7]} 21. Rfc1
{[%clk 0:01:30.9]} 21... Rd8 {[%clk 0:01:08.5]} 22. Rab1 {[%clk 0:01:22.5]}
22... Nd5 {[%clk 0:01:04.8]} 23. Be4 {[%clk 0:01:10]} 23... g6 {[%clk
0:01:03.7]} 24. Qc4 {[%clk 0:01:08.7]} 24... Bf6 {[%clk 0:01:03.2]} 25. h4
{[%clk 0:01:02.4]} 25... h5 {[%clk 0:00:56.8]} 26. Bf3 {[%clk 0:01:02.6]} 26...
Rb7 {[%clk 0:00:51.2]} 27. Kg2 {[%clk 0:00:51.6]} 27... Rxb1 {[%clk 0:00:51.1]}
28. Rxb1 {[%clk 0:00:53.5]} 28... Rc8 {[%clk 0:00:50.9]} 29. Qd3 {[%clk
0:00:48.8]} 29... Qc6 {[%clk 0:00:51.4]} 30. Be4 {[%clk 0:00:33.3]} 30... Kg7
{[%clk 0:00:44.4]} 31. Rb6 {[%clk 0:00:30.9]} 31... Qc4 {[%clk 0:00:34.5]} 32.
Rxa6 {[%clk 0:00:29.3]} 32... Qxd4 {[%clk 0:00:33]} 33. Rd6 {[%clk 0:00:16.6]}
33... Qe5 {[%clk 0:00:27.9]} 34. Rd7 {[%clk 0:00:15.5]} 34... Rc7 {[%clk
0:00:18]} 35. Rxc7 {[%clk 0:00:13.9]} 35... Nxc7 {[%clk 0:00:17.7]} 36. Bb7
{[%clk 0:00:15.1]} 36... Qd4 {[%clk 0:00:15.1]} 37. Qxd4 {[%clk 0:00:15.2]}
37... Bxd4 {[%clk 0:00:16.1]} 38. a6 {[%clk 0:00:16.8]} 38... Kf6 {[%clk
0:00:15.2]} 39. Ba5 {[%clk 0:00:17.3]} 39... Nb5 {[%clk 0:00:13.7]} 40. Bc6
{[%clk 0:00:17.3]} 40... Na7 {[%clk 0:00:13.9]} 41. Bd8+ {[%clk 0:00:17.8]}
41... Ke5 {[%clk 0:00:14.1]} 42. Be8 {[%clk 0:00:18.5]} 42... g5 {[%clk
0:00:09.1]} 43. Bxg5 {[%clk 0:00:17.8]} 1-0